Cogmind - Beta 12 @@@ ROGUE MODE // 2023.04.02 @ 19:52:12 Player: ILikeMonsters1890 Result: Destroyed by S-43 Plague with Heavy Machine Gun Performance ------------- Evolutions (7) 3500 Regions Visited (31) 6200 Robots Destroyed (247) 1235 Value Destroyed (9544) 9544 Prototype IDs (56) 1120 Alien Tech Used (1) 200 Bonus (7739) 7739 TOTAL SCORE: 29538 Bonus ------- High Alert Combat Kills 275 Follower Combat Kills 2332 Entered Garrisons 200 Network Hubs Disabled 200 Met Imprinter 300 Met Zhirov 300 Met Warlord at Base 500 MAIN.C Attacked Warlord 500 Built Enhanced Grunts 300 Met R17 at Cetus 500 Read Decrypted Archives 300 Met R17 at Research 2000 Scanned by Researcher 500 Friendly Fire -468 Cogmind --------- Core Integrity 0/1300 Matter 198/300 Energy 99/100 System Corruption 32% Temperature Cool (0) Movement Core (50) Location -3/Garrison Parts ------- > --- POWER (2) -------- (None) > --- PROPULSION (4) --- (None) > --- UTILITY (11) ----- Advanced Signal Interpreter > --- WEAPON (4) ------- (None) > --- INVENTORY (5) ---- High-powered Tractor Beam Recalibrator Transdimensional Reconstructor Peak State ------------ > --- POWER ------------ Micro Antimatter Reactor Zero-point Reactor > --- PROPULSION ------- Myomer Exoskeleton > --- UTILITY ---------- Advanced Cooling System Advanced Cooling System Large Storage Unit Enhanced Optical Array Improved Transmission Jammer Experimental Cloaking Device Layered Medium Armor Plating Advanced Force Field Hacking Suite Advanced System Shield > --- WEAPON ----------- Gamma Rifle Plasma Rifle Variable Charge Gun Z-bomb Delivery System > --- INVENTORY -------- Light Antimatter Reactor Micro Antimatter Reactor Enhanced Flexi-carbon Leg Enhanced Flexi-carbon Leg Xenon Bombardment Thruster Xenon Bombardment Thruster Xenon Bombardment Thruster Advanced Heat Sink Advanced Energy Well Advanced Gravity Neutralizer System Purifier High-powered Tractor Beam Recalibrator Transdimensional Reconstructor Shock Maul [Rating: 139] Favorites ----------- Power Constructs Engine Improved Ion Engine Power Core Constructs Reactor Light Antimatter Reactor Propulsion Constructs Leg Constructs Wheel Wheel Flight Unit Xenon Bombardment Thruster Utility Armored Scrap Engine Device Armored Scrap Engine Storage Medium Storage Unit Processor Experimental Armor Integrity Analyzer Hackware Advanced System Shield Protection Hardened Medium Armor Plating Weapon Constructs Energy Gun Beam Rifle Energy Cannon Constructs Ballistic Gun Constructs Launcher Rocket Array Special Weapon Advanced Remote Datajack Impact Weapon Shock Maul Slashing Weapon Phasing Sabre Build | -11 -10 -9 -9 -9 -7 -7 -7 -7 -7 -7 -6 -6 -6 -6 -6 -6 -5 -5 -5 -5 -5 -5 -4 -4 -4 -4 -4 -3 -3 -3 -3 ------- Run | Jun Mat Mat Sto Rec Fac Was Fac Low Low Zio Pro Fac Ext Cet Arc Hub Fac Was Fac Upp Upp War Pro Fac Upp Upp Zhi Pro Res Tes Gar Slots Evolved 14 | . . 2 . . 4 . . . . . . 2 . . . . 2 . . . . . . 2 . . . . 2 . . Power 1 | . . . . . . . . . . . . . . . . . 1 . . . . . . . . . . . . . . Propulsion 2 | . . 1 . . 1 . . . . . . . . . . . . . . . . . . . . . . . . . . Utility 9 | . . 1 . . 1 . . . . . . 2 . . . . 1 . . . . . . 2 . . . . 2 . . Weapon 2 | . . . . . 2 . . . . . . . . . . . . . . . . . . . . . . . . . . Parts Attached 199 | 5 10 14 7 3 11 1 5 . 3 2 . 9 6 5 4 4 12 2 3 1 2 6 2 4 1 5 4 15 18 33 2 Power 14 | . 1 2 . . . . . . . . . . . . . . . . . . . . . . . . . 3 4 4 . Engine 3 | . 1 2 . . . . . . . . . . . . . . . . . . . . . . . . . . . . . Core . | . . . . . . . . . . . . . . . . . . . . . . . . . . . . . . . . Reactor 11 | . . . . . . . . . . . . . . . . . . . . . . . . . . . . 3 4 4 . Propulsion 16 | 3 4 4 2 . . . . . . . . . . . . . . . . . . . . . . . . . . 2 1 Treads . | . . . . . . . . . . . . . . . . . . . . . . . . . . . . . . . . Leg 1 | . . . . . . . . . . . . . . . . . . . . . . . . . . . . . . 1 . Wheel 14 | 3 4 4 2 . . . . . . . . . . . . . . . . . . . . . . . . . . 1 . Hover . | . . . . . . . . . . . . . . . . . . . . . . . . . . . . . . . . Flight 1 | . . . . . . . . . . . . . . . . . . . . . . . . . . . . . . . 1 Utility 109 | 1 2 6 2 1 6 . 4 . 1 2 . 8 5 5 4 4 11 2 3 1 1 6 1 2 1 4 3 5 10 8 . Device 57 | 1 . 3 . 1 . . . . . 1 . 8 3 . 2 . 10 1 2 1 . 4 1 1 1 3 2 4 3 5 . Storage 5 | . 1 1 . . . . . . . . . . . . . . 1 . . . . . . . . 1 1 . . . . Processor 7 | . . . . . . . . . . . . . . . 1 1 . . . . . 1 . 1 . . . . 2 1 . Hackware 3 | . . . . . . . . . . . . . . . . . . . . . . . . . . . . . 3 . . Protection 37 | . 1 2 2 . 6 . 4 . 1 1 . . 2 5 1 3 . 1 1 . 1 1 . . . . . 1 2 2 . Artifact . | . . . . . . . . . . . . . . . . . . . . . . . . . . . . . . . . Weapon 60 | 1 3 2 3 2 5 1 1 . 2 . . 1 1 . . . 1 . . . 1 . 1 2 . 1 1 7 4 19 1 Energy Gun 12 | . 3 . . . . . . . . . . . . . . . . . . . . . . . . . . 1 3 5 . Energy Cannon 1 | . . . . . . . 1 . . . . . . . . . . . . . . . . . . . . . . . . Ballistic Gun 9 | 1 . 2 2 2 . . . . . . . . . . . . . . . . . . . . . . . . 1 1 . Ballistic Cannon . | . . . . . . . . . . . . . . . . . . . . . . . . . . . . . . . . Launcher 18 | . . . 1 . 3 1 . . 2 . . 1 . . . . 1 . . . 1 . 1 . . . . 2 . 4 1 Special Weapon 2 | . . . . . . . . . . . . . . . . . . . . . . . . . . . 1 . . 1 . Impact Weapon 9 | . . . . . . . . . . . . . . . . . . . . . . . . 1 . . . . . 8 . Slashing Weapon 9 | . . . . . 2 . . . . . . . 1 . . . . . . . . . . 1 . 1 . 4 . . . Piercing Weapon . | . . . . . . . . . . . . . . . . . . . . . . . . . . . . . . . . Special Melee Weapon . | . . . . . . . . . . . . . . . . . . . . . . . . . . . . . . . . Unidentified Prototypes 28 | . . . . . 2 . 1 . . 1 . 1 . 1 . 1 . . . . . 5 . 1 . . 2 . 1 12 . Corrupted Parts 2 | . . . . . . . . . . . . . . . . . . . . . . . . . . . 1 . . 1 . System Corruption 8 | . . . . . . . . . . . . . . . . . . . . . . . . . . . 1 . . 7 . Parts Lost 82 | . . 6 3 . 2 . . . 1 . . . 1 2 . 1 . 1 . 1 5 . . 7 . . 2 9 2 31 8 Power 11 | . . 1 . . . . . . . . . . . . . . . . . . 1 . . 2 . . . 1 1 4 1 Propulsion 11 | . . 3 1 . . . . . . . . . . . . . . . . . . . . . . . . . . 4 3 Utility 39 | . . 2 1 . 1 . . . 1 . . . 1 2 . 1 . 1 . 1 3 . . 2 . . 2 3 1 14 3 Weapon 21 | . . . 1 . 1 . . . . . . . . . . . . . . . 1 . . 3 . . . 5 . 9 1 Highest Loss Streak 15 | . . 4 2 . 1 . . . 1 . . . 1 1 . 1 . 1 . 1 2 . . 6 . . 2 4 2 12 15 To Critical Strikes 2 | . . . . . . . . . . . . . . . . . . . . . . . . . . . . . . 2 . Average Slot Usage (%) 57 | . 99 92 98 55 55 64 58 53 53 53 53 53 59 59 60 59 51 51 48 52 46 46 52 47 33 46 57 57 78 58 24 Engine 2 | . 14 11 11 6 2 . 6 . . . . . 4 . . 2 1 . 1 . . 3 . . . . . . . . . Core 3 | . . . . 3 2 . . 6 7 7 7 6 1 6 6 2 3 5 3 1 . . . . . 5 5 5 1 . . Reactor 1 | . . . . . 2 7 . . . . . . . . . 1 . . . 3 5 4 5 4 . . . 2 6 7 1 Leg 1 | . . . . 2 1 . . . . . . 3 2 . . . . . . . . . . 2 . . 4 5 4 4 2 Wheel 4 | . 28 26 31 9 3 . . . . . . . . . . 2 2 . . . 2 5 2 . . 4 . . . . 3 Flight 1 | . . . . . . . . 5 7 7 1 . 1 . . . . . . . . . 2 2 2 . . . . . 1 Device 13 | . 7 6 . 10 7 7 7 7 7 7 7 20 20 11 9 13 16 16 15 17 17 17 23 20 18 19 26 22 18 17 5 Storage 5 | . 14 11 11 11 7 7 7 7 7 7 7 6 6 6 6 6 5 4 . . . . . . . 2 5 5 4 2 . Processor 2 | . . . . . . . . . . . . . . . 1 6 5 5 5 5 2 1 5 5 5 5 5 2 8 5 8 Protection 5 | . 6 15 22 . 7 7 7 7 7 6 7 6 6 13 15 5 5 5 8 11 8 5 5 4 . . . 1 . 2 . Energy Gun 3 | . 18 9 . 1 7 9 4 7 7 2 . . . . . . . . . . . . 3 1 . . . 2 4 7 . Energy Cannon 3 | . . . . 2 5 12 10 7 7 7 7 . 1 2 6 2 1 . 1 4 5 4 . 3 . 1 5 . . . . Ballistic Gun 2 | . 8 12 19 6 . . 4 . . 4 6 . . . . . . . . . . . 1 . . . . . 1 . . Slashing Weapon 1 | . . . . . 2 . . . . . . . 5 6 6 5 . . . . . . . . . . . 4 6 . . Naked Turns . | . . . . . . . . . . . . . . . . . . . . . . . . . . . . . . . . Heaviest Build 90 | 14 34 35 31 29 39 48 53 46 53 47 47 50 59 66 66 53 61 62 68 68 63 40 34 42 11 47 47 81 90 89 10 Greatest Support 114 | 26 20 42 42 42 70 59 59 93 73 64 87 106 114 113 113 113 112 112 112 112 114 114 92 92 92 92 92 92 92 97 16 Greatest Overweight (x) 5 | . 1 2 1 5 . . . . . . . . . . . . 1 . . . . . . . . . . . . 2 . Average Overweight (x) . | . . . . . . . . . . . . . . . . . . . . . . . . . . . . . . . . Largest Inventory Capacity 15 | 8 15 15 10 10 10 10 10 10 10 10 10 10 10 10 10 10 10 10 5 5 5 5 5 5 5 15 15 15 15 15 5 Average Capacity 9 | 8 8 11 10 10 10 10 10 10 10 10 10 10 10 10 10 10 10 9 5 5 5 5 5 5 5 9 15 15 15 11 5 Most Carried 15 | 7 15 14 10 10 10 9 10 10 9 10 10 10 10 10 10 10 10 10 5 5 4 5 4 5 5 8 10 11 15 15 4 Average Carried 7 | 3 8 9 9 7 8 8 9 8 8 8 10 7 9 8 10 9 9 9 4 4 3 3 3 4 4 5 9 9 10 11 3 Final Capacity 15 | 8 15 10 10 10 10 10 10 10 10 10 10 10 10 10 10 10 10 5 5 5 5 5 5 5 5 15 15 15 15 5 5 Final Carried 15 | 6 15 10 10 5 9 9 10 10 8 10 10 8 9 10 10 9 10 3 5 4 3 5 4 5 5 7 10 10 15 5 3 Scrap Engine Consumption 332 | . . . . 50 37 7 27 7 4 1 10 17 43 16 . 18 26 1 17 2 2 17 2 15 3 5 5 . . . . Constructs Created 10 | . . . . 3 3 . 1 . . . . . . . . . . . . . . 1 . . 1 1 . . . . . Constructs Modified 150 | . . . . 18 15 3 7 10 1 1 5 6 21 6 2 10 13 1 8 2 1 3 5 6 2 2 2 . . . . Class Distribution -------------------- 56% | Construct 13% | Infiltrator-Construct 8% | Infiltrator-Mutant 7% | Mutant 4% | Commander-Construct 3% | Scavenger-Mutant Dominant Class ---------------- Mutant | -10/Materials Mutant | -9/Materials Scavenger-Mutant | -9/Storage Construct | -9/Recycling Construct | -7/Factory Construct | -7/Waste Construct | -7/Factory Construct | -7/Lower Caves Construct | -7/Lower Caves Construct | -7/Zion Construct | -6/Proximity Caves Construct | -6/Factory Infiltrator-Construct | -6/Extension Commander-Construct | -6/Cetus Commander-Construct | -6/Archives Construct | -6/Hub_04(d) Construct | -5/Factory Construct | -5/Waste Construct | -5/Factory Construct | -5/Upper Caves Construct | -5/Upper Caves Commander-Construct | -5/Warlord Infiltrator-Construct | -4/Proximity Caves Infiltrator-Construct | -4/Factory Infiltrator-Mutant | -4/Upper Caves Infiltrator-Mutant | -4/Upper Caves Infiltrator-Construct | -4/Zhirov Derelict-Mutant | -3/Proximity Caves Hacker-Mutant | -3/Research Infiltrator-Mutant | -3/Testing Mutant | -3/Garrison Resources | -11 -10 -9 -9 -9 -7 -7 -7 -7 -7 -7 -6 -6 -6 -6 -6 -6 -5 -5 -5 -5 -5 -5 -4 -4 -4 -4 -4 -3 -3 -3 -3 ----------- Run | Jun Mat Mat Sto Rec Fac Was Fac Low Low Zio Pro Fac Ext Cet Arc Hub Fac Was Fac Upp Upp War Pro Fac Upp Upp Zhi Pro Res Tes Gar Matter Collected 5906 | 298 302 223 299 104 185 330 50 . 150 20 6 100 153 142 . 331 1041 . 286 249 123 258 14 142 31 54 106 173 258 478 . Remotely . | . . . . . . . . . . . . . . . . . . . . . . . . . . . . . . . . Salvage Created 11786 | 148 586 418 458 508 1749 1073 256 216 516 . 30 262 864 146 . 803 1139 . 281 . . . 74 249 . 165 435 451 196 763 . Parts 480 | 13 37 23 24 24 80 . 19 10 15 . 1 11 31 6 . 41 48 . 23 . 1 . 8 9 . 1 4 16 12 23 . Haulers Intercepted 9 | . 2 . . . 4 . . . . . . . . . . 1 2 . . . . . . . . . . . . . . Recyclers Shooed 15 | 1 3 2 . 2 3 . . . . . . . . . . . 2 . . . . . . . . . . . 1 1 . Parts Field Recycled . | . . . . . . . . . . . . . . . . . . . . . . . . . . . . . . . . Retrieved Matter . | . . . . . . . . . . . . . . . . . . . . . . . . . . . . . . . . Parts Self-Destructed 57 | . . . . . . . . 11 12 3 10 . . . . . . . . 2 1 . 5 . . 3 . 10 . . . Prevented 17 | . . . . . . . . . 3 . . . . . . . . . . 3 . . 6 . . 1 1 3 . . . Kills | -11 -10 -9 -9 -9 -7 -7 -7 -7 -7 -7 -6 -6 -6 -6 -6 -6 -5 -5 -5 -5 -5 -5 -4 -4 -4 -4 -4 -3 -3 -3 -3 ------- Run | Jun Mat Mat Sto Rec Fac Was Fac Low Low Zio Pro Fac Ext Cet Arc Hub Fac Was Fac Upp Upp War Pro Fac Upp Upp Zhi Pro Res Tes Gar Combat Hostiles Destroyed 169 | . 12 5 10 3 32 6 5 4 18 . 1 6 7 2 . 10 5 . 5 . 1 . 5 3 . 1 . 10 3 15 . Melee 16 | . . . . . 6 . . . . . . . 1 . . 1 . . . . . . . 1 . . . 2 3 2 . Guns 33 | . 12 5 4 3 3 . 3 . . . . . . . . . . . . . . . . . . . . 1 . 2 . Cannons 44 | . . . . . 11 . 2 4 . . 1 1 6 2 . 8 3 . 5 . . . . 1 . . . . . . . AOE 63 | . . . 6 . 10 6 . . 17 . . 5 . . . 1 2 . . . 1 . 5 . . . . 5 . 5 . Classes Destroyed 22 | 2 5 1 1 1 5 1 1 . 1 . . . . . . 1 . . . . . . . . . 2 . 1 . . . Worker 17 | . 2 . . . 3 . . . . . . 1 . . . 2 5 . 2 . . . . . . . . . . 2 . Builder 8 | . . . . 1 3 . . . . . . . . . . 1 2 . . . . . . . . . . . . 1 . Tunneler 7 | 4 . . . . . . . . . . . . . . . . 2 . . . . . . . . . . . 1 . . Hauler 9 | . 2 . . . 4 . . . . . . . . . . 1 2 . . . . . . . . . . . . . . Recycler 19 | 1 1 2 2 4 3 . . . . . . . 2 . . . 4 . . . . . . . . . . . . . . Minesweeper 2 | . . . . . . . . . . . . . . . . . . . . . . . . . . . . 2 . . . Mechanic 2 | . . . . . 1 . . . . . . . . . . . 1 . . . . . . . . . . . . . . Operator 2 | . . . . . . . 1 . . . . . . . . 1 . . . . . . . . . . . . . . . Watcher 10 | . 2 1 . . . . 1 . . . . . 2 . . 1 . . . . . . . 1 . . . . . 2 . Swarmer 35 | . 6 . . . 6 . 3 . 5 . 1 2 . . . . . . 1 . 1 . 5 . . . . 4 1 . . Saboteur 1 | . . . . . . . . . . . . . . . . 1 . . . . . . . . . . . . . . . Grunt 52 | . 6 2 7 . 13 . . 1 8 . . 3 4 . . 2 1 . . . . . . . . . . 2 1 2 . Brawler 3 | . . . . . . . . . 3 . . . . . . . . . . . . . . . . . . . . . . Duelist 5 | . . . 1 . . . . 1 1 . . . . . . . . . . . . . . . . . . 2 . . . Protector 2 | . . . . . 2 . . . . . . . . . . . . . . . . . . . . . . . . . . Sentry 23 | . . 3 2 3 . . 2 1 1 . . 1 2 . . 3 . . 1 . . . . 2 . . . 2 . . . Specialist 3 | . . . . . 3 . . . . . . . . . . . . . . . . . . . . . . . . . . Hunter 23 | . . . . . 6 . . 1 . . . . . 1 . 3 4 . 1 . . . . . . . . . . 7 . Programmer 13 | . . . . . 2 . . . . . . . . . . 1 . . 2 . . . . 1 . . . . 1 6 . Compactor 6 | . . . . . . 6 . . . . . . . . . . . . . . . . . . . . . . . . . Cetus Guard 1 | . . . . . . . . . . . . . . 1 . . . . . . . . . . . . . . . . . Decomposer 2 | . . . . . . . . . . . . . . . . . . . . . . . . . . 2 . . . . . Samaritan 1 | . . . . . . . . . . . . . . . . . . . . . . . . . . 1 . . . . . Thug 1 | . . . . . . . . . . . . . 1 . . . . . . . . . . . . . . . . . . Savage 1 | . . . . . . . . . . . . . 1 . . . . . . . . . . . . . . . . . . Butcher 1 | . . . . . . . . . . . . . 1 . . . . . . . . . . . . . . . . . . Mutant 1 | . . . . . . . . . . . . . . . . . . . . . . . . . . 1 . . . . . Best Kill Streak 18 | 3 4 4 9 3 18 6 2 1 17 . 1 3 2 1 . 4 6 . 3 . 1 . 5 1 . 1 . 4 3 4 . Combat Bots Only 17 | . 3 3 7 2 10 6 2 1 17 . 1 3 2 1 . 3 2 . 3 . 1 . 5 1 . 1 . 4 3 3 . Max Kills in Single Turn 10 | 1 2 1 2 1 10 1 1 1 5 . 1 3 1 1 . 3 3 . 1 . 1 . 5 1 . 1 . 2 1 2 . Gunslinging 1 | . 1 . . . . . . . . . . . . . . . . . . . . . . . . . . . . . . Exploded 5 | . . . 1 . 5 1 . . 5 . . 3 . . . 1 2 . . . 1 . 5 . . . . 2 . 1 . Melee 1 | . . . . . 1 . . . . . . . 1 . . 1 . . . . . . . 1 . . . 1 1 1 . Uniques/NPCs Destroyed . | . . . . . . . . . . . . . . . . . . . . . . . . . . . . . . . . Combat | -11 -10 -9 -9 -9 -7 -7 -7 -7 -7 -7 -6 -6 -6 -6 -6 -6 -5 -5 -5 -5 -5 -5 -4 -4 -4 -4 -4 -3 -3 -3 -3 -------- Run | Jun Mat Mat Sto Rec Fac Was Fac Low Low Zio Pro Fac Ext Cet Arc Hub Fac Was Fac Upp Upp War Pro Fac Upp Upp Zhi Pro Res Tes Gar Damage Taken 23366 | . 503 551 539 27 1867 8 327 354 792 . 105 151 634 462 . 1752 440 31 747 746 1513 292 118 2103 159 153 510 1222 807 5540 913 Core 3034 | . 122 56 75 . 56 4 38 33 81 . . 36 . 29 . 189 29 . 51 46 91 67 24 366 . . 190 135 108 645 563 Absorbed by Shields 1356 | . . . . . . . . . . . . . 11 159 . . . . . 110 536 107 42 296 . . . 18 . 39 38 Regen/Repaired (Parts) 5361 | . 29 . . . 248 190 363 133 155 48 319 310 584 206 41 228 647 . 284 46 148 301 223 49 416 157 99 . . 137 . Core Remaining (%) 66 | 100 51 . . 67 . . . . . . 69 . . . . 70 . . . . . . 69 . . . . 39 . . . Volleys Fired 648 | 12 70 38 32 35 66 16 22 14 15 . 3 10 51 21 . 48 63 . 14 1 4 8 1 21 . 13 17 12 6 34 1 Largest 4 | 2 2 2 2 2 3 1 4 2 2 . 2 1 1 1 . 1 1 . 1 1 1 1 1 1 . 1 1 1 3 3 1 Hottest 314 | 40 112 112 46 46 154 45 292 245 245 . 245 162 121 74 . 64 146 . 146 314 314 167 45 136 . 152 152 152 185 225 60 Shots Fired 928 | 24 140 76 51 45 128 16 47 23 23 . 6 10 51 21 . 48 63 . 14 1 4 8 1 21 . 13 17 12 8 56 1 Gun 501 | 24 140 76 38 44 62 . 20 9 8 . 3 . . . . . . . . . . . . 15 . . . 5 8 49 . Cannon 369 | . . . . 1 62 . 27 14 9 . 3 9 51 21 . 48 61 . 14 1 3 8 . 6 . 13 17 1 . . . Launcher 58 | . . . 13 . 4 16 . . 6 . . 1 . . . . 2 . . . 1 . 1 . . . . 6 . 7 1 Special . | . . . . . . . . . . . . . . . . . . . . . . . . . . . . . . . . Kinetic 391 | 24 84 36 38 37 18 . 13 3 . . 3 7 24 21 . 31 27 . 3 . . . . 15 . . . . 6 1 . Thermal 412 | . 56 40 . 6 106 . 27 20 9 . 3 2 27 . . 17 34 . 11 1 3 8 . . . . . . 1 41 . Explosive 58 | . . . 13 . 4 16 . . 6 . . 1 . . . . 2 . . . 1 . 1 . . . . 6 . 7 1 Electromagnetic 67 | . . . . 2 . . 7 . 8 . . . . . . . . . . . . . . 6 . 13 17 6 1 7 . Robot Hit Streak 16 | 3 5 8 11 12 10 15 16 7 6 . 8 4 7 3 . 8 6 . 6 2 1 2 1 3 . . 15 6 10 8 4 Robot Miss Streak 8 | 3 6 3 2 5 5 3 8 4 7 . 2 1 4 3 . 5 3 . 5 . 7 . 3 1 . . 1 3 . 3 . Penetration Max . | . . . . . . . . . . . . . . . . . . . . . . . . . . . . . . . . Secondary Targets 2 | . 1 . 1 . . . . . . . . . . . . . . . . . . . . . . . . . . . . Max Gunslinging Chain 1 | . 1 . 1 . . . . . . . . . . . . . . . . . . . . . . . . . . . . Shots Hit Robots 657 | 12 79 50 35 31 109 16 23 18 17 . 4 4 26 9 . 27 27 . 8 1 1 2 1 17 1 4 17 26 18 73 1 Core Hits 482 | 7 33 13 25 19 112 24 15 6 56 . 1 9 12 3 . 19 24 . 7 . 2 . 8 6 . 1 10 38 8 21 3 Critical Kills 7 | . . . . . 1 . . 1 . . . . 1 . . . . . . . . . . . . 1 1 . . 2 . Critical Parts Destroyed 27 | . . . . . . . . . . . . . 1 2 . 2 . . . . . . . 4 1 1 . 6 . 10 . Critical Strikes 53 | . 2 2 . . 9 . . 2 . . . . 2 3 . 3 . . . . . . . 6 1 2 1 6 1 13 . Burn 9 | . 2 2 . . 3 . . 1 . . . . . . . . . . . . . . . . . . . . . 1 . Meltdown 1 | . . . . . 1 . . . . . . . . . . . . . . . . . . . . . . . . . . Destroy 8 | . . . . . . . . 1 . . . . 2 3 . 2 . . . . . . . . . . . . . . . Smash 26 | . . . . . . . . . . . . . . . . . . . . . . . . 4 1 2 1 6 . 12 . Sever 9 | . . . . . 5 . . . . . . . . . . 1 . . . . . . . 2 . . . . 1 . . Melee Attacks 152 | . . . . . 26 . . . . . . . 1 1 . 3 . . . . . . . 17 1 5 3 21 19 55 . Impact 96 | . . . . . . . . . . . . . . . . . . . . . . . . 13 1 5 3 14 5 55 . Slashing 56 | . . . . . 26 . . . . . . . 1 1 . 3 . . . . . . . 4 . . . 7 14 . . Piercing . | . . . . . . . . . . . . . . . . . . . . . . . . . . . . . . . . Sneak Attacks 12 | . . . . . 3 . . . . . . . 1 . . 2 . . . . . . . . . 3 . 2 . 1 . Combat Hostiles . | . . . . . . . . . . . . . . . . . . . . . . . . . . . . . . . . Follow-up Attacks 12 | . . . . . . . . . . . . . . . . . . . . . . . . . . . . 4 7 1 . Damage Inflicted 35028 | 126 1011 751 1237 363 5040 4210 498 553 2155 . 116 854 1319 563 . 2216 3300 . 1056 113 156 171 252 630 39 381 615 1906 683 4625 89 Guns 5545 | 126 1010 751 439 338 990 . 294 155 150 . 38 . . . . . . . . . . . . 186 . . . 78 163 827 . Cannons 9633 | . . . . 25 877 . 204 398 207 . 78 193 1264 563 . 1578 2410 . 971 113 . 160 . 91 . . 501 . . . . Explosions 13883 | . . . 798 . 1910 4210 . . 1798 . . 661 . . . 462 870 . . . 156 . 252 . . . . 1008 . 1673 85 Melee 5798 | . . . . . 1236 . . . . . . . 55 . . 176 . . . . . . . 353 39 381 114 820 520 2104 . Ramming 169 | . 1 . . . 27 . . . . . . . . . . . 20 . 85 . . 11 . . . . . . . 21 4 Kinetic 6402 | 126 472 301 439 310 330 . 170 64 . . 38 193 557 563 . 685 1526 . 288 . . . . 186 . . . . 132 22 . Thermal 8310 | . 538 450 . 28 1537 . 267 489 207 . 78 492 707 . . 893 884 . 683 113 . 160 . . . . . . . 784 . Explosive 12892 | . . . 798 . 1910 4210 . . 1761 . . 169 . . . . 870 . . . 156 . 252 . . . . 1008 . 1673 85 Electromagnetic 1457 | . . . . 25 . . 61 . 187 . . . . . . 462 . . . . . . . 91 . . 501 78 31 21 . Impact 3628 | . . . . . . . . . . . . . . . . . . . . . . . . 226 39 381 114 647 117 2104 . Slashing 2170 | . . . . . 1236 . . . . . . . 55 . . 176 . . . . . . . 127 . . . 173 403 . . Piercing . | . . . . . . . . . . . . . . . . . . . . . . . . . . . . . . . . Highest Corruption 32 | . . . . . . . . . . . . . 1 1 1 5 7 7 10 10 10 10 . 4 4 1 1 1 3 29 32 Average Corruption 6 | . . . . . . . . . . . . . 1 1 1 1 5 7 8 10 10 10 . 1 3 1 1 1 2 15 30 Corruption Purged 14 | . . . . . . . . . . . . . . . . . . . . . . . . . 4 1 1 1 . 7 . Corruption Blocked . | . . . . . . . . . . . . . . . . . . . . . . . . . . . . . . . . Effects 134 | . . . . . . . . . . . . . 2 3 . 5 10 7 20 10 12 2 . 4 6 1 . 1 6 39 6 Message Errors 42 | . . . . . . . . . . . . . 1 1 . 2 6 1 5 4 1 1 . 1 1 . . . 2 15 1 Matter Fused 22 | . . . . . . . . . . . . . . 1 . 2 1 3 3 1 . . . 1 3 . . 1 1 3 2 Heat Flow Errors 18 | . . . . . . . . . . . . . . . . . 1 . 5 . 4 1 . . 1 . . . 1 5 . Energy Discharges 12 | . . . . . . . . . . . . . . 1 . . . . 2 1 2 . . . . . . . . 6 . Parts Rejected 2 | . . . . . . . . . . . . . . . . . . . 1 . . . . . . . . . . 1 . Parts Fused 1 | . . . . . . . . . . . . . . . . . . 1 . . . . . . . . . . . . . Data Loss (minor) 15 | . . . . . . . . . . . . . 1 . . 1 1 1 4 1 . . . 1 1 1 . . 1 2 . Data Loss (major) 7 | . . . . . . . . . . . . . . . . . . . . 2 3 . . . . . . . 1 1 . Alerts 6 | . . . . . . . . . . . . . . . . . 1 1 . . 1 . . 1 . . . . . 2 . Misdirections 8 | . . . . . . . . . . . . . . . . . . . . 1 1 . . . . . . . . 3 3 Weapon Failures 1 | . . . . . . . . . . . . . . . . . . . . . . . . . . . . . . 1 . Overload Shots . | . . . . . . . . . . . . . . . . . . . . . . . . . . . . . . . . Overflow Damage 3448 | . . . 19 . 98 1 . . 14 . . 50 102 . . 151 612 . 138 . 45 18 . 116 39 180 136 421 52 1237 19 Projectiles 1065 | . . . . . 14 . . . 6 . . . 102 . . 128 538 . 123 . . 18 . . . . 136 . . . . Explosions 645 | . . . 19 . 6 1 . . 8 . . 50 . . . 23 74 . . . 45 . . . . . . 8 . 392 19 Melee 1738 | . . . . . 78 . . . . . . . . . . . . . 15 . . . . 116 39 180 . 413 52 845 . Knockbacks 37 | . . . . . 5 . . . . . . 2 2 1 . 3 2 . 1 . . . . . . . . 2 . 19 . Impact 21 | . . . . . . . . . . . . . . . . . . . 1 . . . . . . . . 2 . 18 . Kinetic 14 | . . . . . 4 . . . . . . 2 2 1 . 3 2 . . . . . . . . . . . . . . Secondary 2 | . . . . . 1 . . . . . . . . . . . . . . . . . . . . . . . . 1 . Self-Inflicted Damage 563 | . . . 17 . 13 8 . . 42 . . 29 . . . 98 . . 34 . 31 5 14 . . . . 128 . 78 66 Shots 19 | . . . 2 . . 1 . . 2 . . 1 . . . 1 . . . . 3 . 1 . . . . 6 . 1 1 Rammed 21 | . 1 . . . 4 . . . . . . . . . . . 1 . 7 . . 2 . . . . . . . 2 4 Targets Rammed 23 | . 1 . . . 4 . . . . . . . . . . . 1 . 8 . . 2 . . . . . . . 3 4 Kicked 1 | . . . . . . . . . . . . . . . . . . . . . . . . . . . . . . 1 . Crushed 1 | . . . . . . . . . . . . . . . . . . . 1 . . . . . . . . . . . . Highest Temperature 385 | . 324 195 74 8 330 . 279 305 348 . 234 116 270 144 . 195 330 . 385 290 364 248 . 270 63 192 288 105 61 254 2 Average Temperature 97 | . 94 71 31 4 125 . 111 139 122 . 102 61 81 54 . 43 78 . 139 157 137 96 . 103 41 91 94 55 24 97 2 Received Heat Transfer 3126 | . 201 177 273 9 543 . 18 150 150 . 60 . 216 31 . 339 54 . 9 97 72 54 6 275 57 20 . 151 116 12 36 Effects 15 | . 4 . . . . . 1 1 . . . . 2 . . . . . 2 . . . . . . . 2 . . 3 . Shutdowns 1 | . . . . . . . . . . . . . . . . . . . 1 . . . . . . . . . . . . Energy Bleed 5 | . 1 . . . . . . . . . . . 2 . . . . . . . . . . . . . 2 . . . . Interference 7 | . 2 . . . . . 1 1 . . . . . . . . . . . . . . . . . . . . . 3 . Matter Decay 1 | . 1 . . . . . . . . . . . . . . . . . . . . . . . . . . . . . . Short Circuit 1 | . . . . . . . . . . . . . . . . . . . 1 . . . . . . . . . . . . Siege Activations 1 | . . . . . . . . . . . . . . 1 . . . . . . . . . . . . . . . . . Total Turns 2 | . . . . . . . . . . . . . . 2 . . . . . . . . . . . . . . . . . Longest Duration 2 | . . . . . . . . . . . . . . 2 . . . . . . . . . . . . . . . . . Robots Corrupted 2 | . . . . . . . . . 1 . . . . . . . . . . . . . . . . . . . . 1 . Combat Hostiles 2 | . . . . . . . . . 1 . . . . . . . . . . . . . . . . . . . . 1 . Parts Fried 23 | . . . . . . . . . . . . . . 3 . 1 . . . . . . . 3 . 4 2 2 . 8 . Impact Corruptions 57 | . . . . . . . . . . . . . . . . . . . 1 . . . . 4 1 7 . 11 2 31 . Robots Melted 2 | . . . . . 2 . . . . . . . . . . . . . . . . . . . . . . . . . . Combat Hostiles 2 | . . . . . 2 . . . . . . . . . . . . . . . . . . . . . . . . . . Parts Melted 31 | . 3 2 . . 9 . 3 2 . . . . 1 . . 4 . . 2 . . . . . . . . . 1 4 . Heat Transferred 12266 | . 1517 1295 . 111 3626 . 888 820 250 . 100 350 629 . . 637 420 . 222 50 . 74 . . . . . . . 1277 . Parts Sabotaged 3 | . . . . . . . . . . . . . . . . 2 . . . . . . . . . . . 1 . . . Parts Stolen . | . . . . . . . . . . . . . . . . . . . . . . . . . . . . . . . . Parts Stripped . | . . . . . . . . . . . . . . . . . . . . . . . . . . . . . . . . Power Chain Reactions 1 | . . . . . . . . . 1 . . . . . . . . . . . . . . . . . . . . . . Missiles Intercepted . | . . . . . . . . . . . . . . . . . . . . . . . . . . . . . . . . Alert | -11 -10 -9 -9 -9 -7 -7 -7 -7 -7 -7 -6 -6 -6 -6 -6 -6 -5 -5 -5 -5 -5 -5 -4 -4 -4 -4 -4 -3 -3 -3 -3 ------- Run | Jun Mat Mat Sto Rec Fac Was Fac Low Low Zio Pro Fac Ext Cet Arc Hub Fac Was Fac Upp Upp War Pro Fac Upp Upp Zhi Pro Res Tes Gar Peak Influence 961 | 25 352 172 369 213 615 211 362 . . . . 560 377 536 569 961 821 332 436 . . . . 208 . . . . 166 162 124 Initial 470 | . 16 42 24 143 50 150 147 . . . . 92 198 123 214 198 470 287 225 . . . . 69 . . . . 94 . 92 Average 209 | 13 191 97 251 45 226 201 255 . . . . 363 269 376 273 298 601 293 274 . . . . 89 . . . . 72 61 89 Maximum Alert Level 3 | . 1 . 1 1 2 1 1 . . . . 2 1 2 2 3 3 1 2 . . . . 1 . . . . . . . Low Security (%) 51 | 100 43 100 27 90 56 25 31 . . . . 26 14 14 . 24 . . . . . . . 98 . . . . 100 100 100 Level 1 35 | . 56 . 72 9 21 74 68 . . . . 24 85 33 87 58 . 100 90 . . . . 1 . . . . . . . Level 2 11 | . . . . . 21 . . . . . . 48 . 51 12 12 75 . 9 . . . . . . . . . . . . Level 3 1 | . . . . . . . . . . . . . . . . 4 24 . . . . . . . . . . . . . . Level 4 . | . . . . . . . . . . . . . . . . . . . . . . . . . . . . . . . . Level 5 . | . . . . . . . . . . . . . . . . . . . . . . . . . . . . . . . . High Security . | . . . . . . . . . . . . . . . . . . . . . . . . . . . . . . . . Max Security . | . . . . . . . . . . . . . . . . . . . . . . . . . . . . . . . . Squads Dispatched 37 | . 3 1 . . 5 . 1 . 1 . . . . 1 . 6 3 . 2 . . . . 3 . . . 1 4 6 . Investigation 9 | . 1 . . . 1 . 1 . . . . . . 1 . . 1 . 1 . . . . 1 . . . . 2 . . Extermination 6 | . . . . . 1 . . . . . . . . . . 1 . . 1 . . . . . . . . . . 3 . Reinforcement 17 | . 2 1 . . 2 . . . . . . . . . . 4 2 . . . . . . 1 . . . . 2 3 . Assault 4 | . . . . . . . . . 1 . . . . . . 1 . . . . . . . 1 . . . 1 . . . Garrison 1 | . . . . . 1 . . . . . . . . . . . . . . . . . . . . . . . . . . Intercept . | . . . . . . . . . . . . . . . . . . . . . . . . . . . . . . . . Searches Triggered . | . . . . . . . . . . . . . . . . . . . . . . . . . . . . . . . . Construction Impeded 1 | . . . . . . . . . . . . . . . . . 1 . . . . . . . . . . . . . . Haulers Reinforced 3 | . . . . . 1 . . . . . . . . . . 1 . . . . . . . . . . . . 1 . . Active Scanning Responses . | . . . . . . . . . . . . . . . . . . . . . . . . . . . . . . . . Cargo Convoy Interrupts 1 | . . . . . 1 . . . . . . . . . . . . . . . . . . . . . . . . . . Stealth | -11 -10 -9 -9 -9 -7 -7 -7 -7 -7 -7 -6 -6 -6 -6 -6 -6 -5 -5 -5 -5 -5 -5 -4 -4 -4 -4 -4 -3 -3 -3 -3 --------- Run | Jun Mat Mat Sto Rec Fac Was Fac Low Low Zio Pro Fac Ext Cet Arc Hub Fac Was Fac Upp Upp War Pro Fac Upp Upp Zhi Pro Res Tes Gar Distress Signals 16 | . 2 . 1 . 1 . 1 . . . . . . 2 . 3 . . . . . . . . . . . . 6 . . Communications Jammed 304 | . . . . . . . . . . . . . 15 . . . . . . . . 238 . 2 . . . . . 49 . Distress Signals 304 | . . . . . . . . . . . . . 15 . . . . . . . . 238 . 2 . . . . . 49 . Times Spotted 383 | . 23 7 14 1 47 6 13 7 20 . 6 12 22 18 2 25 16 6 8 11 11 31 3 18 4 3 . 13 6 24 6 Peak Tracking Total 17 | . 5 3 7 1 7 4 3 4 8 . 3 3 5 8 7 17 7 6 4 7 5 8 2 8 4 2 . 5 4 4 6 Tactical Retreats 34 | . . . . . 4 . 2 . . . . . 3 . 1 3 2 . 1 4 5 3 . 3 . 1 . . . 2 . Traps | -11 -10 -9 -9 -9 -7 -7 -7 -7 -7 -7 -6 -6 -6 -6 -6 -6 -5 -5 -5 -5 -5 -5 -4 -4 -4 -4 -4 -3 -3 -3 -3 ------- Run | Jun Mat Mat Sto Rec Fac Was Fac Low Low Zio Pro Fac Ext Cet Arc Hub Fac Was Fac Upp Upp War Pro Fac Upp Upp Zhi Pro Res Tes Gar Traps Triggered 16 | . . 1 . . 2 . 3 . . . . . . . . . 6 . . . . 1 . 1 . . . . 1 . 1 Indirectly . | . . . . . . . . . . . . . . . . . . . . . . . . . . . . . . . . Trap Hack Attempts . | . . . . . . . . . . . . . . . . . . . . . . . . . . . . . . . . Triggered . | . . . . . . . . . . . . . . . . . . . . . . . . . . . . . . . . Disarmed . | . . . . . . . . . . . . . . . . . . . . . . . . . . . . . . . . Reprogrammed . | . . . . . . . . . . . . . . . . . . . . . . . . . . . . . . . . Reused . | . . . . . . . . . . . . . . . . . . . . . . . . . . . . . . . . Traps Extracted . | . . . . . . . . . . . . . . . . . . . . . . . . . . . . . . . . Installed . | . . . . . . . . . . . . . . . . . . . . . . . . . . . . . . . . Triggered 13 | . . . . . . . . . 1 . 1 . . . . . . . . 1 . 8 1 . . . . 1 . . . Machines | -11 -10 -9 -9 -9 -7 -7 -7 -7 -7 -7 -6 -6 -6 -6 -6 -6 -5 -5 -5 -5 -5 -5 -4 -4 -4 -4 -4 -3 -3 -3 -3 ---------- Run | Jun Mat Mat Sto Rec Fac Was Fac Low Low Zio Pro Fac Ext Cet Arc Hub Fac Was Fac Upp Upp War Pro Fac Upp Upp Zhi Pro Res Tes Gar Machines Disabled 58 | . . . 1 . 1 . 2 . . . . 15 1 . 1 23 6 . . . . 2 . . . 1 2 . 1 2 . Max in Single Turn 20 | . . . 1 . 1 . 1 . . . . 15 . . . 20 2 . . . . 1 . . . 1 1 . 1 1 . Garrison Access 4 | . . . . . 1 . 1 . . . . 1 . . . . . . . . . . . 1 . . . . . . . Garrison Relay 1 | . . . . . . . . . . . . . . . . . . . . . . . . . . . . . . . 1 Network Hub 1 | . . . . . . . . . . . . . . . . 1 . . . . . . . . . . . . . . . Machines Repaired . | . . . . . . . . . . . . . . . . . . . . . . . . . . . . . . . . Machines Sabotaged . | . . . . . . . . . . . . . . . . . . . . . . . . . . . . . . . . Overloaded Fab Kills . | . . . . . . . . . . . . . . . . . . . . . . . . . . . . . . . . Hacking | -11 -10 -9 -9 -9 -7 -7 -7 -7 -7 -7 -6 -6 -6 -6 -6 -6 -5 -5 -5 -5 -5 -5 -4 -4 -4 -4 -4 -3 -3 -3 -3 --------- Run | Jun Mat Mat Sto Rec Fac Was Fac Low Low Zio Pro Fac Ext Cet Arc Hub Fac Was Fac Upp Upp War Pro Fac Upp Upp Zhi Pro Res Tes Gar Machines Accessed 82 | . 9 2 3 8 6 . 6 2 . 1 . 3 11 1 1 3 5 . 4 . . 4 . 4 . . 4 . 2 3 . Terminals 49 | . 6 2 1 5 3 . 4 . . . . 2 10 1 . 2 4 . 4 . . . . 3 . . . . 2 . . Fabricators 2 | . . . . . 1 . . . . . . . . . . . . . . . . . . . . . . . . 1 . Repair Stations 3 | . 1 . . . . . . . . . . . . . . . 1 . . . . . . . . . . . . 1 . Recycling Units 8 | . 2 . 2 3 . . . . . . . . 1 . . . . . . . . . . . . . . . . . . Scanalyzers . | . . . . . . . . . . . . . . . . . . . . . . . . . . . . . . . . Garrison Access 8 | . . . . . 2 . 2 . . . . 1 . . . 1 . . . . . . . 1 . . . . . 1 . Total Hacks 257 | . 31 5 5 16 13 . 14 5 . 6 . 5 25 3 25 8 24 . 11 . . 11 . 8 . . 17 . 15 10 . Successful 132 | . 14 3 4 6 4 . 5 5 . 6 . 2 10 . 25 2 8 . 3 . . 11 . 2 . . 17 . . 5 . Failed 125 | . 17 2 1 10 9 . 9 . . . . 3 15 3 . 6 16 . 8 . . . . 6 . . . . 15 5 . Catastrophic 43 | . 4 1 . 4 4 . 3 . . . . . 4 1 . 2 3 . 5 . . . . 5 . . . . 6 1 . Database Lockouts . | . . . . . . . . . . . . . . . . . . . . . . . . . . . . . . . . Manual 34 | . 9 . 1 2 1 . 3 . . 4 . . 6 1 . 2 2 . 2 . . . . . . . . . . 1 . Terminals 142 | . 25 5 2 12 7 . 9 . . . . 3 24 3 . 5 15 . 11 . . . . 6 . . . . 15 . . Fabricators 3 | . . . . . 1 . . . . . . . . . . . . . . . . . . . . . . . . 2 . Repair Stations 16 | . 2 . . . . . . . . . . . . . . . 9 . . . . . . . . . . . . 5 . Recycling Units 12 | . 4 . 3 4 . . . . . . . . 1 . . . . . . . . . . . . . . . . . . Scanalyzers . | . . . . . . . . . . . . . . . . . . . . . . . . . . . . . . . . Garrison Access 20 | . . . . . 5 . 5 . . . . 2 . . . 3 . . . . . . . 2 . . . . . 3 . Terminal Hacks 113 | . 10 3 2 5 3 . 4 5 . 6 . 1 10 . 25 2 4 . 3 . . 11 . 2 . . 17 . . . . Record 44 | . . . . . . . . 4 . . . . . . 25 . . . . . . 10 . . . . 5 . . . . Part Schematic 11 | . . . . . . . . . . 6 . . 1 . . . . . . . . . . . . . 4 . . . . Robot Analysis 5 | . . . . . . . . . . . . . . . . . . . . . . . . 1 . . 4 . . . . Prototype ID Bank 12 | . 2 . 1 3 . . . . . . . . . . . . 1 . 1 . . . . . . . 4 . . . . Open Door 7 | . . . . . . . . 1 . . . 1 4 . . . . . . . . 1 . . . . . . . . . Level Access Points 1 | . 1 . . . . . . . . . . . . . . . . . . . . . . . . . . . . . . Branch Access Points 4 | . 1 1 . . . . 1 . . . . . . . . . . . 1 . . . . . . . . . . . . Emergency Access Points 2 | . . . . . . . . . . . . . . . . 1 1 . . . . . . . . . . . . . . Alert Level 7 | . 2 . . 1 . . 1 . . . . . 2 . . 1 . . . . . . . . . . . . . . . Unreport Threat 3 | . . 1 . . 1 . . . . . . . 1 . . . . . . . . . . . . . . . . . . Locate Traps 6 | . 1 . 1 . . . 1 . . . . . 2 . . . 1 . . . . . . . . . . . . . . Hauler Manifests 1 | . . . . . 1 . . . . . . . . . . . . . . . . . . . . . . . . . . Registered Components 1 | . 1 . . . . . . . . . . . . . . . . . . . . . . . . . . . . . . Zone Layout 9 | . 2 1 . 1 1 . 1 . . . . . . . . . 1 . 1 . . . . 1 . . . . . . . Fabricator Hacks 1 | . . . . . . . . . . . . . . . . . . . . . . . . . . . . . . 1 . Network Status 1 | . . . . . . . . . . . . . . . . . . . . . . . . . . . . . . 1 . Repair Station Hacks 8 | . 2 . . . . . . . . . . . . . . . 4 . . . . . . . . . . . . 2 . Scan Component 3 | . 1 . . . . . . . . . . . . . . . 1 . . . . . . . . . . . . 1 . Repair 3 | . 1 . . . . . . . . . . . . . . . 1 . . . . . . . . . . . . 1 . Refit 2 | . . . . . . . . . . . . . . . . . 2 . . . . . . . . . . . . . . Recycling Unit Hacks 4 | . 1 . 2 1 . . . . . . . . . . . . . . . . . . . . . . . . . . . Retrieve Components 4 | . 1 . 2 1 . . . . . . . . . . . . . . . . . . . . . . . . . . . Scanalyzer . | . . . . . . . . . . . . . . . . . . . . . . . . . . . . . . . . Garrison Access Hacks 4 | . . . . . 1 . 1 . . . . 1 . . . . . . . . . . . . . . . . . 1 . Unlock Access 1 | . . . . . . . . . . . . . . . . . . . . . . . . . . . . . . 1 . Seal Access 3 | . . . . . 1 . 1 . . . . 1 . . . . . . . . . . . . . . . . . . . Unauthorized Hacks 2 | . 1 . . . . . . . . . . . . . . . . . . . . . . . . . . . . 1 . Terminals 1 | . 1 . . . . . . . . . . . . . . . . . . . . . . . . . . . . . . Botnet 1 | . 1 . . . . . . . . . . . . . . . . . . . . . . . . . . . . . . Fabricators 1 | . . . . . . . . . . . . . . . . . . . . . . . . . . . . . . 1 . Liberate 1 | . . . . . . . . . . . . . . . . . . . . . . . . . . . . . . 1 . Repair Stations . | . . . . . . . . . . . . . . . . . . . . . . . . . . . . . . . . Recycling Units . | . . . . . . . . . . . . . . . . . . . . . . . . . . . . . . . . Scanalyzers . | . . . . . . . . . . . . . . . . . . . . . . . . . . . . . . . . Garrison Access . | . . . . . . . . . . . . . . . . . . . . . . . . . . . . . . . . Data Cores Recovered 2 | . . . . . . . 1 . . . . . . . . 1 . . . . . . . . . . . . . . . Used . | . . . . . . . . . . . . . . . . . . . . . . . . . . . . . . . . Hacking Detections 64 | . 9 2 2 8 6 . 5 . . . . 2 10 1 . 3 5 . 3 . . . . 4 . . . . 2 2 . Full Trace Events 9 | . 1 . . 1 1 . 1 . . . . . . 1 . . 1 . 1 . . . . 1 . . . . 1 . . Feedback Events . | . . . . . . . . . . . . . . . . . . . . . . . . . . . . . . . . Feedback Blocked . | . . . . . . . . . . . . . . . . . . . . . . . . . . . . . . . . Robot Schematics Acquired . | . . . . . . . . . . . . . . . . . . . . . . . . . . . . . . . . Robots Built . | . . . . . . . . . . . . . . . . . . . . . . . . . . . . . . . . Authchips . | . . . . . . . . . . . . . . . . . . . . . . . . . . . . . . . . Time . | . . . . . . . . . . . . . . . . . . . . . . . . . . . . . . . . Total Robot Build Rating . | . . . . . . . . . . . . . . . . . . . . . . . . . . . . . . . . Part Schematics Acquired 11 | . . . . . . . . . . 6 . . 1 . . . . . . . . . . . . . 4 . . . . Parts Built . | . . . . . . . . . . . . . . . . . . . . . . . . . . . . . . . . Authchips . | . . . . . . . . . . . . . . . . . . . . . . . . . . . . . . . . Time . | . . . . . . . . . . . . . . . . . . . . . . . . . . . . . . . . Total Part Build Rating . | . . . . . . . . . . . . . . . . . . . . . . . . . . . . . . . . Parts Repaired 3 | . 1 . . . . . . . . . . . . . . . 1 . . . . . . . . . . . . 1 . Time 110 | . 32 . . . . . . . . . . . . . . . 38 . . . . . . . . . . . . 40 . Parts Recycled . | . . . . . . . . . . . . . . . . . . . . . . . . . . . . . . . . Recycled Matter . | . . . . . . . . . . . . . . . . . . . . . . . . . . . . . . . . Retrieved Matter . | . . . . . . . . . . . . . . . . . . . . . . . . . . . . . . . . Retrieved Components 19 | . 9 . 3 7 . . . . . . . . . . . . . . . . . . . . . . . . . . . Parts Scanalyzed . | . . . . . . . . . . . . . . . . . . . . . . . . . . . . . . . . Part Schematics Acquired . | . . . . . . . . . . . . . . . . . . . . . . . . . . . . . . . . Parts Damaged . | . . . . . . . . . . . . . . . . . . . . . . . . . . . . . . . . Bothacking | -11 -10 -9 -9 -9 -7 -7 -7 -7 -7 -7 -6 -6 -6 -6 -6 -6 -5 -5 -5 -5 -5 -5 -4 -4 -4 -4 -4 -3 -3 -3 -3 ------------ Run | Jun Mat Mat Sto Rec Fac Was Fac Low Low Zio Pro Fac Ext Cet Arc Hub Fac Was Fac Upp Upp War Pro Fac Upp Upp Zhi Pro Res Tes Gar Used RIF Installer . | . . . . . . . . . . . . . . . . . . . . . . . . . . . . . . . . Robots Hacked . | . . . . . . . . . . . . . . . . . . . . . . . . . . . . . . . . Non-combat . | . . . . . . . . . . . . . . . . . . . . . . . . . . . . . . . . Combat . | . . . . . . . . . . . . . . . . . . . . . . . . . . . . . . . . Robot Hacks Applied . | . . . . . . . . . . . . . . . . . . . . . . . . . . . . . . . . Relay Couplers Released 7 | . . . . . . . . . . . . . . . . . . . . . . . . 1 . . . . 3 . 3 Machine Destruction 4 | . . . . . . . . . . . . . . . . . . . . . . . . 1 . . . . . . 3 Programmers 3 | . . . . . . . . . . . . . . . . . . . . . . . . . . . . . 3 . . Fabnet Peak Effective % . | . . . . . . . . . . . . . . . . . . . . . . . . . . . . . . . . Robots Rewired 15 | . . . . . . . . . . . . . 9 . . . . . . . . 5 . . . . . . . 1 . Allies Hacked . | . . . . . . . . . . . . . . . . . . . . . . . . . . . . . . . . Hacks Repelled . | . . . . . . . . . . . . . . . . . . . . . . . . . . . . . . . . Allies | -11 -10 -9 -9 -9 -7 -7 -7 -7 -7 -7 -6 -6 -6 -6 -6 -6 -5 -5 -5 -5 -5 -5 -4 -4 -4 -4 -4 -3 -3 -3 -3 -------- Run | Jun Mat Mat Sto Rec Fac Was Fac Low Low Zio Pro Fac Ext Cet Arc Hub Fac Was Fac Upp Upp War Pro Fac Upp Upp Zhi Pro Res Tes Gar Total Allies 34 | . . . . . . . . . . 5 . . 15 5 . . . . . . . 5 . . . . . . . 4 . Largest Group 8 | . . . . . . . . . . 5 5 4 8 8 6 . . . . . . 5 . . . . . . . 3 . Highest-Rated Group 658 | . . . . . . . . . . 125 125 100 373 658 499 . . . . . . 271 . . . . . . . 147 . Highest-Rated Ally 159 | . . . . . . . . . . 32 32 32 159 159 96 . . . . . . 65 . . . . . . . 147 . Total Orders 2 | . . . . . . . . . . . . . . . . . . . . . . 2 . . . . . . . . . STAY 2 | . . . . . . . . . . . . . . . . . . . . . . 2 . . . . . . . . . Ally Attacks 293 | . . . . . . . . . . . 26 13 69 89 23 . . . . . . 43 . . . . . . . 30 . Total Damage 7554 | . . . . . . . . . . . 616 374 1373 2226 694 . . . . . . 1536 . . . . . . . 735 . Kills 59 | . . . . . . . . . . . 7 3 16 15 8 . . . . . . 6 . . . . . . . 4 . Allies Corrupted 1 | . . . . . . . . . . . . . . . . . . . . . . . . . . . . . . 1 . Allies Melted . | . . . . . . . . . . . . . . . . . . . . . . . . . . . . . . . . Intel | -11 -10 -9 -9 -9 -7 -7 -7 -7 -7 -7 -6 -6 -6 -6 -6 -6 -5 -5 -5 -5 -5 -5 -4 -4 -4 -4 -4 -3 -3 -3 -3 ------- Run | Jun Mat Mat Sto Rec Fac Was Fac Low Low Zio Pro Fac Ext Cet Arc Hub Fac Was Fac Upp Upp War Pro Fac Upp Upp Zhi Pro Res Tes Gar Robot Analysis Total 5 | . . . . . . . . . . . . . . . . . . . . . . . . 1 . . 4 . . . . Derelict Logs Recovered 10 | . . . . . . . . 2 . 2 2 . . . . . . . . . 1 . . . 1 2 . . . . . Drone Launches . | . . . . . . . . . . . . . . . . . . . . . . . . . . . . . . . . Drone Recoveries . | . . . . . . . . . . . . . . . . . . . . . . . . . . . . . . . . Exploration | -11 -10 -9 -9 -9 -7 -7 -7 -7 -7 -7 -6 -6 -6 -6 -6 -6 -5 -5 -5 -5 -5 -5 -4 -4 -4 -4 -4 -3 -3 -3 -3 ------------- Run | Jun Mat Mat Sto Rec Fac Was Fac Low Low Zio Pro Fac Ext Cet Arc Hub Fac Was Fac Upp Upp War Pro Fac Upp Upp Zhi Pro Res Tes Gar Turns Passed 19832 | 109 940 357 235 1968 1230 237 606 808 500 1431 678 565 1330 265 49 736 792 221 623 257 272 977 255 577 388 552 542 705 569 1007 51 Spaces Moved 14197 | 61 700 209 130 818 976 205 870 652 329 826 317 254 614 166 42 840 799 172 531 260 272 843 157 720 254 583 214 466 385 487 45 Core 19 | . . . . 2 . . . . . . . . . . . . . . . . . . . . . . . . . . 17 Treads 1497 | . . . . . . . . 26 . . 256 110 225 155 29 . 369 172 155 . . . . . . . . . . . . Legs 2560 | . . . . 201 214 . . . . . . 144 245 11 . . . . . . . . . 349 . . 113 466 385 432 . Wheels 4710 | 61 700 209 130 615 559 . . . . . . . . . . 343 349 . . . 139 843 . . . 578 101 . . 55 28 Hover 2911 | . . . . . 203 205 870 71 . . . . 44 . 13 497 81 . 310 260 133 . . . 219 5 . . . . . Flight 2500 | . . . . . . . . 555 329 826 61 . 100 . . . . . 66 . . . 157 371 35 . . . . . . Fastest Speed 48 | 80 80 93 93 90 80 54 48 69 96 171 171 146 110 115 74 64 64 64 64 94 94 94 61 61 48 48 65 123 123 90 50 Average Speed 95 | 84 82 94 93 107 85 79 52 95 134 171 171 170 130 115 102 65 65 64 85 94 94 94 61 61 49 64 95 123 123 120 74 Slowest Speed 300 | 90 95 110 105 300 90 80 69 96 171 171 171 171 180 115 115 74 142 64 94 94 94 94 61 61 61 65 123 123 123 130 90 Overloaded Moves . | . . . . . . . . . . . . . . . . . . . . . . . . . . . . . . . . Propulsion Burnouts . | . . . . . . . . . . . . . . . . . . . . . . . . . . . . . . . . Robots Hopped 4 | . . . . . . . . . 1 . . . . . . . . . 1 . . . . 2 . . . . . . . Cave-ins Triggered . | . . . . . . . . . . . . . . . . . . . . . . . . . . . . . . . . Exploration Rate (%) 50 | 4 87 21 23 90 25 86 33 81 54 85 62 11 64 56 68 50 17 73 18 52 57 90 45 24 49 79 70 71 12 61 8 Regions Visited 31 Branch Regions 19 Pre-discovered Areas 10 | . . . 1 . . . . 1 . 2 1 . . . . . . . . . . . . . 1 1 3 . . . . Known Exits Taken 11 | . 1 1 . . . . 1 . . . . 1 . . 1 1 . . 1 1 . . . 1 . . . . 1 1 . Unknown Exits Taken 16 | 1 . . 1 1 . . . 1 1 1 1 . 1 1 . . . . . . 1 1 1 . 1 1 1 1 . . . Scrap Searched 16 | . . . . . . . . 3 2 1 . . . . . . . . . 3 2 . . . 2 1 . 2 . . . Spaces Dug 68 | . . . . . 2 . 1 . 1 . . 3 19 . . 5 18 . . . . . . 9 . 6 . . 1 3 . Terrain Destroyed 1047 | . . . 47 . 45 185 5 5 96 . 1 39 31 10 . 187 75 . 6 . 17 . 29 16 . 6 . 137 3 78 29 Melee 9 | . . . . . . . . . . . . . . . . 1 . . . . . . . 4 . . . . 1 3 . Projectile 145 | . . . . . 6 . 5 5 3 . 1 4 31 10 . 19 32 . 6 . 2 . . 12 . 6 . 1 2 . . AOE 893 | . . . 47 . 39 185 . . 93 . . 35 . . . 167 43 . . . 15 . 29 . . . . 136 . 75 29 Terrain Rammed . | . . . . . . . . . . . . . . . . . . . . . . . . . . . . . . . . Walls Destroyed . | . . . . . . . . . . . . . . . . . . . . . . . . . . . . . . . . Machines Disabled . | . . . . . . . . . . . . . . . . . . . . . . . . . . . . . . . . Actions | -11 -10 -9 -9 -9 -7 -7 -7 -7 -7 -7 -6 -6 -6 -6 -6 -6 -5 -5 -5 -5 -5 -5 -4 -4 -4 -4 -4 -3 -3 -3 -3 --------- Run | Jun Mat Mat Sto Rec Fac Was Fac Low Low Zio Pro Fac Ext Cet Arc Hub Fac Was Fac Upp Upp War Pro Fac Upp Upp Zhi Pro Res Tes Gar Total 19264 | 98 939 292 194 1869 1214 246 982 818 358 844 447 376 1092 218 45 975 1006 282 686 271 283 1020 314 800 513 733 529 547 452 760 61 Wait 3544 | 6 131 17 15 996 99 24 47 147 10 14 128 93 281 17 . 73 118 109 125 10 5 110 153 38 257 123 285 31 15 67 . Move 14161 | 60 699 208 129 817 976 204 869 651 326 825 316 253 613 165 41 839 799 171 528 259 271 842 156 715 253 582 213 465 384 487 45 Hop 4 | . . . . . . . . . 1 . . . . . . . . . 1 . . . . 2 . . . . . . . Pick Up 123 | 7 14 7 5 1 15 . 15 3 . 2 . 4 11 5 . 3 5 . 5 . . . . 1 . 3 2 3 9 3 . Fast Attach 79 | 2 4 4 1 1 1 . 3 . . . . . 2 1 . 3 1 . 1 . . 6 . 4 . 2 3 8 10 22 . Attach 74 | . . 6 3 2 6 1 . . 3 . . 6 1 2 . 1 3 2 2 1 2 . 2 . 1 3 2 7 5 11 2 Detach 43 | . . . 1 3 4 1 . . 2 . . 3 . 1 . . 1 . . . 1 2 1 . 1 2 3 4 2 11 . Swap 47 | 3 6 4 3 . 4 . 2 . . 2 . 3 3 2 4 . 8 . . . . . . . . . . . 3 . . Drop 140 | 8 14 8 5 14 13 . 18 3 1 1 . 4 10 3 . 5 7 . 2 . . 6 1 2 . . 1 1 7 6 . Fire 648 | 12 70 38 32 35 66 16 22 14 15 . 3 10 51 21 . 48 63 . 14 1 4 8 1 21 . 13 17 12 6 34 1 Melee 137 | . . . . . 26 . . . . . . . 1 1 . 3 . . . . . . . 17 1 5 3 16 11 53 . Ram 20 | . 1 . . . 4 . . . . . . . . . . . . . 7 . . 2 . . . . . . . 2 4 Kick 1 | . . . . . . . . . . . . . . . . . . . . . . . . . . . . . . 1 . Crush 2 | . . . . . . . . . . . . . . . . . 1 . 1 . . . . . . . . . . . . Escape Stasis 43 | . . . . . . . 6 . . . . . . . . . . . . . . . . . . . . . . 28 9 Rewire 198 | . . . . . . . . . . . . . 119 . . . . . . . . 44 . . . . . . . 35 . Trap . | . . . . . . . . . . . . . . . . . . . . . . . . . . . . . . . . Miscellaneous . | . . . . . . . . . . . . . . . . . . . . . . . . . . . . . . . . Route ------- -11/Junkyard -10/Materials (discovered 4 exits: *Mat x3 / *Min) -9/Materials (discovered 4 exits: [*Mat] / Min / *Sto x2) -9/Storage -9/Recycling -7/Factory -7/Waste -7/Factory (discovered 3 exits: Fac / *Low x2) -7/Lower Caves -7/Lower Caves -7/Zion (discovered 2 exits: [*Dee] / [*Pro]) -6/Proximity Caves -6/Factory (discovered 2 exits: Low / *Ext) -6/Extension (discovered 2 exits: *Fac / *Cet) -6/Cetus (discovered 2 exits: *Fac / *Arc) -6/Archives -6/Hub_04(d) (discovered 2 exits: *Fac x2) -5/Factory -5/Waste -5/Factory (discovered 2 exits: *Upp x2) -5/Upper Caves -5/Upper Caves -5/Warlord -4/Proximity Caves -4/Factory -4/Upper Caves -4/Upper Caves -4/Zhirov -3/Proximity Caves -3/Research (discovered 3 exits: [*Res] / [*Arm] / *Tes) -3/Testing -3/Garrison History --------- Turn | Location | Event 22 | -11/Junkyard | Discovered new exit (range 3) 110 | -11/Junkyard | Entered Materials 249 | -10/Materials | Discovered new exit (range 15) 316 | -10/Materials | Build established: Mutant 617 | -10/Materials | Identified exit to Materials 745 | -10/Materials | Repaired Beam Rifle 943 | -10/Materials | Discovered new exit (range 13) 943 | -10/Materials | Identified exit to Mines 1050 | -10/Materials | Entered another Materials area 1050 | -9/Materials | Evolved 2 slots: Propulsion x1, Utility x1 1174 | -9/Materials | Lost 4 parts (1p2n1u) 1231 | -9/Materials | Identified exit to Mines 1231 | -9/Materials | Identified exit to Storage 1369 | -9/Materials | Discovered new exit (range 5) 1407 | -9/Materials | Entered Storage 1513 | -9/Storage | Destroyed 7 combat bots 1534 | -9/Storage | Learned location of Armory (-3) 1638 | -9/Storage | Used back door to open Recycling access 1638 | -9/Storage | Discovered new exit (range 5) 1642 | -9/Storage | Entered Recycling 1678 | -9/Recycling | Found Scrap Engine 2218 | -9/Recycling | Build established: Construct 2448 | -9/Recycling | Discovered new exit (range 16) 3610 | -9/Recycling | Entered Factory 3610 | -7/Factory | Evolved 4 slots: Propulsion x1, Utility x1, Weapon x2 4104 | -7/Factory | Found Prototype Launcher 4105 | -7/Factory | Identified Rocket Array 4110 | -7/Factory | Found Rocket Array 4305 | -7/Factory | Cargo convoy interrupted 4334 | -7/Factory | Destroyed 10 combat bots 4717 | -7/Factory | Garrison activated, responded to threat 4840 | -7/Factory | Sucked down chute 4840 | -7/Factory | Entered Waste 4854 | -7/Waste | Spotted C-40 Crusher 4855 | -7/Waste | Spotted C-40 Crusher 4863 | -7/Waste | Destroyed C-40 Crusher 4869 | -7/Waste | Destroyed C-40 Crusher 4872 | -7/Waste | Spotted C-40 Crusher 4872 | -7/Waste | Spotted C-40 Crusher 4873 | -7/Waste | Destroyed C-40 Crusher 4886 | -7/Waste | Destroyed C-40 Crusher 4892 | -7/Waste | Spotted C-40 Crusher 4898 | -7/Waste | Spotted C-40 Crusher 4898 | -7/Waste | Destroyed C-40 Crusher 4910 | -7/Waste | Destroyed C-40 Crusher 4993 | -7/Waste | Discovered new exit (range 16) 5077 | -7/Waste | Entered Factory 5145 | -7/Factory | Discovered new exit (range 10) 5527 | -7/Factory | Identified exit to Lower Caves 5527 | -7/Factory | Discovered new exit (range 12) 5683 | -7/Factory | Entered Lower Caves 5684 | -7/Lower Caves | Encountered a Warlord checkpoint 5967 | -7/Lower Caves | Attracted the attention of an 0b10 checkpoint 6180 | -7/Lower Caves | Learned location of 1 exit from Factory 6296 | -7/Lower Caves | Discovered new exit (range 9) 6491 | -7/Lower Caves | Entered another Lower Caves area 6586 | -7/Lower Caves | Attracted the attention of an 0b10 outpost 6632 | -7/Lower Caves | Destroyed 17 combat bots 6830 | -7/Lower Caves | Spotted B-75 Beast 6982 | -7/Lower Caves | Discovered new exit (range 7) 6991 | -7/Lower Caves | Entered Zion 7076 | -7/Zion | Given A8's code to call for help 7147 | -7/Zion | Discovered new exit (range 15) 7395 | -7/Zion | Learned Factory machine intel 7525 | -7/Zion | Acquired unknown access codes intercepted by a Zionite 7666 | -7/Zion | Gained Derelict followers 7666 | -7/Zion | Learned location of Quarantine (-2) 7727 | -7/Zion | Given the Hacking Drone Bay 7727 | -7/Zion | Found Prototype Device 7728 | -7/Zion | Identified Hacking Drone Bay 7863 | -7/Zion | Learned Factory trap positions 7890 | -7/Zion | Opened final containment barrier to the Deep Caves 7917 | -7/Zion | Discovered new exit (range 3) 7917 | -7/Zion | Saw the warning signs outside the Deep Caves entrance 8282 | -7/Zion | Found Prototype Device 8422 | -7/Zion | Entered Proximity Caves 8422 | -6/Proximity Caves | Accompanied by 5 allies 8627 | -6/Proximity Caves | Learned location of 1 exit from Factory 8949 | -6/Proximity Caves | Spotted B-75 Beast 8962 | -6/Proximity Caves | Allies destroyed B-75 Beast 9090 | -6/Proximity Caves | Discovered new exit (range 5) 9100 | -6/Proximity Caves | Entered Factory 9100 | -6/Factory | Accompanied by 4 allies 9100 | -6/Factory | Evolved 2 slots: Utility x2 9101 | -6/Factory | Identified exit to Lower Caves 9101 | -6/Factory | Identified exit to Extension 9102 | -6/Factory | Loaded intel: 130 trap records 9103 | -6/Factory | Loaded intel: 263 machine locations 9104 | -6/Factory | Identified Bomb Factory No. 2 9245 | -6/Factory | Spotted B-75 Beast 9265 | -6/Factory | Allies destroyed B-75 Beast 9665 | -6/Factory | Entered Extension 9665 | -6/Extension | Accompanied by 1 ally 9975 | -6/Extension | Build established: Infiltrator-Construct 10257 | -6/Extension | Rescued a captive Derelict 10258 | -6/Extension | Rescued a captive Derelict 10477 | -6/Extension | Rescued A7 10607 | -6/Extension | Rescued a captive Derelict 10643 | -6/Extension | Rescued a captive Derelict 10644 | -6/Extension | Rescued a captive Derelict 10954 | -6/Extension | Discovered new exit (range 10) 10956 | -6/Extension | Discovered new exit (range 6) 10995 | -6/Extension | Entered Cetus 10995 | -6/Cetus | Accompanied by 8 allies (A7) 11000 | -6/Cetus | Acquired a Cetus Manufacturing Module code from A7 11011 | -6/Cetus | Spotted Cetus Guard 11011 | -6/Cetus | Spotted Cetus Guard 11013 | -6/Cetus | Spotted Cetus Guard 11021 | -6/Cetus | Spotted Cetus Guard 11022 | -6/Cetus | Allies destroyed Cetus Guard 11029 | -6/Cetus | Allies destroyed Cetus Guard 11030 | -6/Cetus | Allies destroyed Cetus Guard 11034 | -6/Cetus | Destroyed Cetus Guard 11089 | -6/Cetus | Started Cetus Manufacturing Module 11114 | -6/Cetus | Manufactured an Enhanced Grunt 11126 | -6/Cetus | Discovered new exit (range 16) 11139 | -6/Cetus | Manufactured an Enhanced Grunt 11159 | -6/Cetus | Spotted Cetus Guard 11159 | -6/Cetus | Spotted Cetus Guard 11163 | -6/Cetus | Spotted Cetus Guard 11164 | -6/Cetus | Manufactured an Enhanced Grunt 11167 | -6/Cetus | Spotted Cetus Guard 11167 | -6/Cetus | Allies destroyed Cetus Guard 11169 | -6/Cetus | Allies destroyed Cetus Guard 11174 | -6/Cetus | Allies destroyed Cetus Guard 11181 | -6/Cetus | Allies destroyed Cetus Guard 11182 | -6/Cetus | Discovered new exit (range 16) 11189 | -6/Cetus | Manufactured an Enhanced Grunt 11189 | -6/Cetus | Met Revision 17 11214 | -6/Cetus | Manufactured an Enhanced Grunt 11260 | -6/Cetus | Entered Archives 11260 | -6/Archives | Accompanied by 7 allies (A7) 11277 | -6/Archives | Met Zhirov 11283 | -6/Archives | Reinforcements dispatched to Archives 11289 | -6/Archives | Read partially decrypted archive contents 11289 | -6/Archives | Read partially decrypted archive contents 11292 | -6/Archives | Discovered new exit (range 15) 11308 | -6/Archives | Identified exit to Hub_04(d) 11309 | -6/Archives | Entered Hub_04(d) 11378 | -6/Hub_04(d) | Found Prototype Processor 11378 | -6/Hub_04(d) | Identified Exp. Targeting Computer 11549 | -6/Hub_04(d) | Discovered new exit (range 10) 11589 | -6/Hub_04(d) | Build established: Construct 11642 | -6/Hub_04(d) | Discovered new exit (range 11) 11666 | -6/Hub_04(d) | Identified exit to Factory 12009 | -6/Hub_04(d) | First assault squad dispatched 12012 | -6/Hub_04(d) | Network Hub disabled 12027 | -6/Hub_04(d) | Spotted Lightning 12029 | -6/Hub_04(d) | Spotted Lightning 12032 | -6/Hub_04(d) | Spotted Lightning 12045 | -6/Hub_04(d) | Entered Factory 12045 | -5/Factory | Evolved 2 slots: Power x1, Utility x1 12122 | -5/Factory | Repaired Imp. Sensor Array 12837 | -5/Factory | Sucked down chute 12837 | -5/Factory | Entered Waste 13009 | -5/Waste | Spotted C-40 Crusher 13012 | -5/Waste | Spotted C-40 Crusher 13012 | -5/Waste | Spotted C-40 Crusher 13012 | -5/Waste | Spotted C-40 Crusher 13024 | -5/Waste | Spotted C-40 Crusher 13032 | -5/Waste | Spotted C-40 Crusher 13036 | -5/Waste | Crushed by Compactor (1 part destroyed, 2 dropped) 13047 | -5/Waste | Discovered new exit (range 15) 13056 | -5/Waste | Identified exit to Factory 13058 | -5/Waste | Entered Factory 13342 | -5/Factory | Found Imp. Powered Armor 13387 | -5/Factory | System corruption reached 10% 13511 | -5/Factory | Found Rocket Array 13563 | -5/Factory | Identified exit to Upper Caves 13681 | -5/Factory | Entered Upper Caves 13773 | -5/Upper Caves | Attracted the attention of an 0b10 outpost 13832 | -5/Upper Caves | Attracted the attention of an 0b10 checkpoint 13932 | -5/Upper Caves | Discovered new exit (range 7) 13937 | -5/Upper Caves | Identified exit to Upper Caves 13938 | -5/Upper Caves | Entered another Upper Caves area 14038 | -5/Upper Caves | Spotted B-75 Beast 14114 | -5/Upper Caves | Learned 8 Factory zone layouts 14116 | -5/Upper Caves | Attracted the attention of an 0b10 checkpoint 14200 | -5/Upper Caves | Discovered new exit (range 13) 14210 | -5/Upper Caves | Entered Warlord 14238 | -5/Warlord | Discovered new exit (range 8) 14265 | -5/Warlord | System corruption cleaned by Quarantine Array 14683 | -5/Warlord | Visited the Vortex Lab 14701 | -5/Warlord | Warlord's base attacked by MAIN.C 14810 | -5/Warlord | Found Prototype Device 14810 | -5/Warlord | Identified Minesniffer Drone Bay 14833 | -5/Warlord | Build established: Commander-Construct 14905 | -5/Warlord | Met Warlord 14925 | -5/Warlord | Found Prototype Device 14925 | -5/Warlord | Identified Exp. Cloaking Device 14935 | -5/Warlord | Found Prototype Device 14935 | -5/Warlord | Identified System Purifier 14938 | -5/Warlord | Found Prototype Processor 14938 | -5/Warlord | Identified Exp. Armor Integrity Analyzer 15051 | -5/Warlord | Warlord forces counterattacked 15056 | -5/Warlord | Spotted Striker 15099 | -5/Warlord | Spotted Executioner 15123 | -5/Warlord | Spotted Striker 15161 | -5/Warlord | Spotted Executioner 15187 | -5/Warlord | Entered Proximity Caves 15387 | -4/Proximity Caves | Spotted B-86 Titan 15437 | -4/Proximity Caves | Discovered new exit (range 7) 15442 | -4/Proximity Caves | Entered Factory 15442 | -4/Factory | Evolved 2 slots: Utility x2 15443 | -4/Factory | Identified exit to Upper Caves 15484 | -4/Factory | Build established: Infiltrator-Construct 15946 | -4/Factory | Spotted B-86 Titan 16019 | -4/Factory | Entered Upper Caves 16049 | -4/Upper Caves | Lost 6 parts (2p1u3w) 16284 | -4/Upper Caves | Build established: Infiltrator-Mutant 16398 | -4/Upper Caves | Discovered new exit (range 12) 16407 | -4/Upper Caves | Entered another Upper Caves area 16645 | -4/Upper Caves | Learned location of Testing (-3) 16657 | -4/Upper Caves | Attacked by a delusional Derelict stockpiling parts 16943 | -4/Upper Caves | Discovered new exit (range 4) 16959 | -4/Upper Caves | Entered Zhirov 16959 | -4/Zhirov | Discovered new exit (range 3) 16983 | -4/Zhirov | Learned location of Command (-1) 16999 | -4/Zhirov | Found Alien Artifact 17007 | -4/Zhirov | Found Alien Artifact 17007 | -4/Zhirov | Identified Integrated Reactor 17007 | -4/Zhirov | Installed Integrated Reactor, increased core energy generation (+10) 17049 | -4/Zhirov | Build established: Infiltrator-Construct 17444 | -4/Zhirov | Cloak Generator disabled 17444 | -4/Zhirov | Attacked by Zhirov 17501 | -4/Zhirov | Entered Proximity Caves 17503 | -3/Proximity Caves | Attracted the attention of an 0b10 checkpoint 17529 | -3/Proximity Caves | Core integrity fell below 50% 17768 | -3/Proximity Caves | Build established: Infiltrator-Mutant 17867 | -3/Proximity Caves | Attracted the attention of an 0b10 outpost 17963 | -3/Proximity Caves | Lost 3 parts (2u1w) 18130 | -3/Proximity Caves | Build established: Derelict-Mutant 18178 | -3/Proximity Caves | Lost 4 parts (1p1u2w) 18201 | -3/Proximity Caves | Discovered new exit (range 5) 18206 | -3/Proximity Caves | Entered Research 18206 | -3/Research | Evolved 2 slots: Utility x2 18207 | -3/Research | Identified exit to Testing 18266 | -3/Research | Discovered new exit (range 6) 18406 | -3/Research | Revision forces began assault on 0b10 18456 | -3/Research | Met up with Revision 17++ 18467 | -3/Research | Discovered new exit (range 22) 18494 | -3/Research | Build established: Hacker-Mutant 18686 | -3/Research | Spotted B-86 Titan 18775 | -3/Research | Entered Testing 18828 | -3/Testing | Spotted PH-W6FJV9V4ZE 18871 | -3/Testing | Rewired PH-W6FJV9V4ZE 18934 | -3/Testing | Build established: Hacker-Tank 18937 | -3/Testing | Repaired Shock Maul 19006 | -3/Testing | Found Corrupted Prototype Reactor 19006 | -3/Testing | Identified Zero-point Reactor 19007 | -3/Testing | System corruption reached 10% 19065 | -3/Testing | Found Prototype Launcher 19065 | -3/Testing | Identified Z-bomb Delivery System 19192 | -3/Testing | Lost 8 parts (6u2w) 19270 | -3/Testing | Found Prototype Energy Gun 19270 | -3/Testing | Identified Warp Gun 19388 | -3/Testing | Spotted Striker 19390 | -3/Testing | Spotted Striker 19451 | -3/Testing | Scanned by Researcher 19541 | -3/Testing | Found Prototype Launcher 19541 | -3/Testing | Identified Hellfire Missile Launcher 19545 | -3/Testing | Lost 12 parts (2p3n3u4w) 19740 | -3/Testing | Core integrity fell below 50% 19782 | -3/Testing | Identified exit to Garrison 19782 | -3/Testing | Entered Garrison 19795 | -3/Garrison | System corruption reached 30% 19823 | -3/Garrison | Garrison Relay disabled 19824 | -3/Garrison | Core integrity fell below 20% 19833 | -3/Garrison | Destroyed by S-43 Plague with Heavy Machine Gun Last Messages --------------- 19819_ Field strength at 33. 19820_ System corrupted: Matter fused (-5). 19820_ Field strength at 27. 19821_ Field strength at 21. 19822_ The unstable cave ceiling collapses. 19822_ Centrium Wheel destroyed. 19822_ Field strength at 2. 19823_ Stasis field depleted. 19823_ Slammed into P-80 Master. 19823_ Penetrated by Slug. 19823_ Garrison Relay disabled. 19823_ Relay Coupler [Grunt] tumbles out of relay unit. 19823_ Relay Coupler [Heavy] tumbles out of relay unit. 19823_ Relay Coupler [Sentry] tumbles out of relay unit. 19824_ Slammed into S-43 Plague. 19824_ Exp. Cloaking Device broken. 19824_ Destabilizing: Short circuit. 19824_ Enh. Optical Array destroyed. 19825_ Broken Exp. Cloaking Device destroyed. 19825_ Slammed into S-43 Plague. Map ----- +----------------------------------------------------+ | ?????????????????????????????????????????????????? | | ?????????????????????????????????????????????????? | | ?????????????????????????????????????????????????? | | ?????????????????????????????????????????????????? | | ?????????????????????????????????????????????????? | | ????????????????????????????####?????????????????? | | ???????????????????????????? ??????????????????? | | ???????????????????????????? ??????????????????? | | ???????????????????????????? #??????????????????? | | ???????????????????????????? #??????????????????? | | ???????????????????????????? #??????????????????? | | ???????????????????????????? #??????????????????? | | ??????????????????########## #??????????????????? | | ??????????????????# #??????????????????? | | ??????????????????# #??????????????????? | | ??????????????????# ##### ###??????????????????? | | ??????????????????# #???# #????????????????????? | | ??????????????????#####???# #????????????????????? | | ??????????????????????????# #????????????????????? | | ??????????????????????????# ######???????????????? | | ??????????????????????????# + #???????????????? | | ??????????????????????????# #### #???????????????? | | ?????????????????????????## #??# #???????????????? | | ?????????????????????????# ##?# #???????????????? | | ????????????????????????## ### #???????????????? | | ????????????????????#####@ ## #???????????????? | | ????????????????????# p #??????####?????? | | ????????????????????# ## # #?????""" #?????? | | ???????????????????????## #/###### !!##?????? | | ???????????????????????# spss !#?????? | | ???????????????????????# ### ########?????? | | ???????????????????????## #?# #????????????? | | ????????????????????????### # #?#####????????????? | | ??????????????????????????#####??????????????????? | | ?????????????????????????????????????????????????? | | ?????????????????????????????????????????????????? | | ?????????????????????????????????????????????????? | | ?????????????????????????????????????????????????? | | ?????????????????????????????????????????????????? | | ?????????????????????????????????????????????????? | | ?????????????????????????????????????????????????? | | ?????????????????????????????????????????????????? | | ?????????????????????????????????????????????????? | | ?????????????????????????????????????????????????? | | ?????????????????????????????????????????????????? | | ?????????????????????????????????????????????????? | | ?????????????????????????????????????????????????? | | ?????????????????????????????????????????????????? | | ?????????????????????????????????????????????????? | | ?????????????????????????????????????????????????? | +----------------------------------------------------+ Best States ------------- Heat Dissipation 155 Energy Generation 57 Energy Capacity 566 Matter Stores 300 Matter Capacity 300 Sight Range 22 Robot Scan Range 15 Terrain Scan Density 10 ECM Strength 1 Jamming Range 14 Cloak Strength 4 Additional Mass Support 12 Armor Coverage 675 Phase Shifting 5 Evasion (%) 64 Targeting Accuracy 12 Armor Integrity Analysis 50 Recoil Reduction 4 Offensive Hacking 10 Defensive Hacking 28 Item Schematics ----------------- Riot Gun | -7/Zion | Free Arc Thrower | -7/Zion | Free Battle Rifle | -7/Zion | Free Barrage Gun | -7/Zion | Free Hvy. Battle Rifle | -7/Zion | Free Flamer | -7/Zion | Free Imp. Reaction Control System | -6/Extension | Hacked Assault Drone Bay | -4/Zhirov | Free Exp. Heat Sink | -4/Zhirov | Free Exp. Optical Array | -4/Zhirov | Free Imp. Arc Thrower | -4/Zhirov | Free Robot Schematics ------------------ None Fabricated ------------ Nothing Alien Tech Used ----------------- Integrated Reactor Achievements -------------- Below Challenges ------------ None Game ------ Seed TerrainDerelictScreen Manual? 0 Play Time 04:09:11 Cumulative 173.3 hours Start 2023.04.01 @ 11:56:42 End 2023.04.02 @ 19:52:12 Sessions 9 Manual Loads 0 Difficulty Rogue Special Mode None Game No. 151 Rogue 151 Adventurer 0 Explorer 0 Win Type - Total 6 Types 4/0/1/1/0/0/0/0/0 Lore% 78 Gallery% 65 Achievement% 57 Wizard Run 0 Options --------- ASCII 0 Keyboard 0 Movement Numpad Keybinds 0 Fullscreen 2 Font 18/Smallcaps Map View 76x50 Tactical HUD 1 Map Filters NONE Filters NONE Steam 1 RUN: 1d54a353-de0d-4153-b655-4bcb808213a7